[Event "FIDE WSCC 50 2022"]
[Site "Assisi"]
[Date "2022.11.22"]
[Round "7.9"]
[White "de Francesco, Klaus"]
[Black "Jhunjhnuwala, Krishan"]
[Result "1/2-1/2"]
[ECO "B23"]
[WhiteElo "2171"]
[BlackElo "2326"]
[Annotator "TA"]
[PlyCount "57"]
[EventDate "2022.11.14"]
[EventType "swiss"]
[EventCountry "ITA"]
[SourceTitle "playchess.com"]
[Source "ChessBase"]
[SourceQuality "1"]
[TimeControl "40/5400+30:1800+30"]

{[%evp 9,57,28,48,4,0,-27,-4,-28,-12,-20,-22,-26,-16,-16,-16,-79,-3,-18,-11,-40,-14,-31,-24,-121,-109,-186,-85,-175,-139,-129,-141,-144,-134,-154,-138,-119,-93,-180,-128,-134,-113,-193,-95,-96,-109,-227,-215,-239,0,0]} 1. e4 {[%emt 0:00:05]} c5 {[%emt 0:01:04]} 2. Nc3 {[%emt 0:00:14]} Nc6 {[%emt 0:00:35]} 3. f4 {[%emt 0:00:10]} e6 {[%emt 0:03:20]} 4. Nf3 {[%emt 0:00:20]} d6 {[%emt 0:01:14]} 5. Bb5 {[%emt 0:00:42]} Nge7 {[%emt 0:01:07]} 6. O-O {[%emt 0:01:40] B23: Closed Sicilian: Lines without g3.} a6 {[%emt 0:00:24]} 7. Be2 {[%emt 0:02:23]} Nd4 {[%emt 0:02:29]} 8. d3 {[%emt 0:00:51]} Nec6 {[%emt 0:00:38] [#]} 9. Be3 $146 {[%emt 0:01:03]} ({Predecessor:} 9. f5 Be7 10. fxe6 fxe6 11. Nxd4 Nxd4 12. Bh5+ g6 13. Bg4 h5 14. Be2 Rf8 15. Rxf8+ Bxf8 {½-½ (37) Bukharin,A (1850)-Laczay,I (1906) IECG email 2006}) 9... Be7 {[%emt 0:00:40]} 10. Rc1 {[%emt 0:03:05]} Bf6 {[%emt 0:06:18]} 11. Qe1 {[%emt 0:04:33]} O-O {[%emt 0:10:18]} 12. Qg3 {[%emt 0:03:07]} (12. Bf2 $11) 12... Bd7 {[%emt 0:03:48]} (12... Qb6 $17 13. Bxd4 cxd4) 13. Bd1 $11 {[%emt 0:02:46]} Rc8 {[%emt 0:03:06]} 14. Kh1 {[%emt 0:04:26]} Nxf3 {[%emt 0:04:49]} 15. Bxf3 {[%emt 0:02:11]} b5 {[%emt 0:03:43][%cal Bb7b5,Bb5b4][%mdl 32]} 16. f5 {[%emt 0:13:01]} (16. Qf2 $11) 16... b4 $17 {[%emt 0:04:26] ...Be5 is the strong threat.} 17. fxe6 {[%emt 0:01:16]} (17. Nd1 $17 {was worth a try.}) 17... fxe6 {[%emt 0:02:13]} (17... Bxe6 $19 {is more deadly.} 18. Nd5 Bxb2) 18. Ne2 {[%emt 0:01:13]} (18. Nd1 $17 {was called for.}) 18... Bxb2 {[%emt 0:01:55]} 19. Qxd6 {[%emt 0:01:05]} Bxc1 {[%emt 0:00:58]} 20. Rxc1 {[%emt 0:01:07] [#]} e5 $1 {[%emt 0:02:26][%cal Oc5c4]} 21. Qd5+ {[%emt 0:03:54]} Kh8 {[%emt 0:01:53]} 22. Bxc5 {[%emt 0:01:29]} Rf6 {[%emt 0:01:33]} 23. d4 {[%emt 0:02:16]} (23. a3 $17) 23... Nxd4 {[%emt 0:03:53]} (23... Qe8 $19 {And now ...Be6 would win.} 24. Qb3 exd4 25. Nxd4 a5) 24. Nxd4 {[%emt 0:00:49]} exd4 {[%emt 0:00:20]} 25. Bxd4 {[%emt 0:01:12] [#]} (25. Bxb4 $17 Rfc6 26. Qxd4) 25... Rf8 {[%emt 0:02:20]} (25... Rfc6 $1 $19 {and Black stays clearly on top. White must now prevent ...Be6.} 26. e5 Qe8) 26. Bc5 {[%emt 0:01:38]} Bc6 {[%emt 0:07:15]} 27. Qh5 {[%emt 0:02:06]} (27. Qxd8 $17 Rfxd8 28. Bxb4) 27... Re8 {[%emt 0:02:52]} 28. Bg4 {[%emt 0:01:15]} Bxe4 {[%emt 0:04:45]} (28... Bd7 $19 {Threatens to win with ...Bxg4.} 29. Bxd7 Qxd7 30. Bxb4 Rxe4) 29. Bxc8 {[%emt 0:03:49] Weighted Error Value: White=0.41/Black=0.35} 1/2-1/2

[Event "FIDE WSCC 50 2022"]
[Site "Assisi"]
[Date "2022.11.22"]
[Round "7.10"]
[White "Calzetta Ruiz, Monica"]
[Black "Vinter-Schou, Uffe"]
[Result "0-1"]
[ECO "B82"]
[WhiteElo "2244"]
[BlackElo "2375"]
[Annotator "TA"]
[PlyCount "60"]
[EventDate "2022.11.14"]
[EventType "swiss"]
[EventCountry "ITA"]
[SourceTitle "playchess.com"]
[Source "ChessBase"]
[SourceQuality "1"]
[TimeControl "40/5400+30:1800+30"]

{[%evp 14,60,25,27,26,22,29,21,48,25,17,20,17,0,0,-48,-40,-41,-50,-39,-27,-63,-77,-50,-56,-56,-61,-60,-60,-56,-54,-230,-233,-229,-230,-217,-214,-262,-247,-502,-292,-510,-500,-745,-728,-847,-825,-825,-823]} 1. e4 {[%emt 0:00:18]} c5 {[%emt 0:00:08]} 2. Nc3 {[%emt 0:00:14]} a6 {[%emt 0:01:37]} 3. Nf3 {[%emt 0:00:27]} e6 {[%emt 0:01:22]} 4. d4 {[%emt 0:00:07]} cxd4 {[%emt 0:00:04]} 5. Nxd4 {[%emt 0:00:06]} Qc7 {[%emt 0:01:03]} 6. Bd3 {[%emt 0:02:54]} Nf6 {[%emt 0:02:01]} 7. Qe2 {[%emt 0:00:23]} d6 {[%emt 0:01:46]} 8. f4 {[%emt 0:04:11] 8.f4 scores better than 8.0-0.} Nbd7 {[%emt 0:01:13] B82: Sicilian Scheveningen: 6 f4.} 9. g4 {[%emt 0:10:25] Black should prevent g5.} h6 {[%emt 0:04:10]} 10. Bd2 {[%emt 0:26:52]} Be7 {[%emt 0:00:42] The position is equal.} 11. h4 {[%emt 0:05:26]} Nc5 {[%emt 0:10:36]} 12. O-O-O {[%emt 0:12:31] [#] Threatening g5.} Nxd3+ $146 {[%emt 0:05:37]} ({Predecessor:} 12... h5 13. g5 Ng4 14. Kb1 b5 15. Rde1 Bb7 16. Rhf1 Nxd3 17. cxd3 Qb6 18. Nf3 b4 {1-0 (42) Grover,S (2492)-Hejazipour,M (2269) Abu Dhabi 2014}) 13. cxd3 {[%emt 0:02:15] [#] Threatens to win with g5.} b5 {[%emt 0:07:18][%cal Bb7b5,Bb5b4][%mdl 32] Strongly threatening ...b4.} 14. g5 {[%emt 0:09:56] Against b4} (14. Kb1 $11) 14... b4 $1 $15 {[%emt 0:02:17]} 15. gxf6 {[%emt 0:00:24]} Bxf6 {[%emt 0:00:05]} 16. Qe3 {[%emt 0:00:54][%cal Oc1b1]} Qc5 {[%emt 0:04:07][%mdl 64] [#] Pin} (16... Rb8 $5) 17. Nxe6 {[%emt 0:07:39]} Bxe6 {[%emt 0:03:27]} 18. Qxc5 {[%emt 0:00:03]} dxc5 {[%emt 0:00:08]} 19. Na4 {[%emt 0:09:57]} Bxa2 {[%emt 0:00:38] This pair of bishops is nice.} 20. Kc2 {[%emt 0:01:51] Inhibits Bb3+. Black must now prevent b3.} c4 $36 {[%emt 0:25:13][%mdl 2048] Prevents b3. White is under pressure.} 21. dxc4 {[%emt 0:00:10]} Bxc4 {[%emt 0:00:08] Hoping for ...Rc8.} 22. Bxb4 $2 {[%emt 0:00:43] Loses the game.} ({White should play} 22. e5 $15 Bd8 23. Bxb4) 22... Rb8 $19 {[%emt 0:00:56]} 23. e5 {[%emt 0:02:05] Kc3 is the strong threat.} Rxb4 {[%emt 0:11:01]} (23... Be7 24. Bxe7 Bb3+ 25. Kc3 Bxd1 26. Bd6 Rc8+ 27. Nc5 $17) 24. exf6 {[%emt 0:00:03]} O-O {[%emt 0:00:11]} ({Weaker is} 24... Rxa4 25. Rhe1+ Be6 26. fxg7 $11) 25. Nc5 {[%emt 0:01:47]} Rc8 {[%emt 0:00:27]} ({Stronger than} 25... gxf6 26. Kc3 a5 27. Rd4 $11) 26. Rhg1 $2 {[%emt 0:00:09]} (26. Nd3 {was the only chance.} Rb6 27. Kb1) 26... g6 {[%emt 0:04:48]} (26... Rxc5 $2 {leads to mate.} 27. Rxg7+ Kh8 28. Rd8#) 27. Kc3 $2 {[%emt 0:00:06]} (27. Nd3 Bxd3+ 28. Kxd3) 27... a5 {[%emt 0:00:04] Black is clearly winning.} 28. f5 {[%emt 0:00:32]} Bb3 {[%emt 0:00:55]} 29. Rd7 {[%emt 0:01:48]} Rxc5+ {[%emt 0:00:06]} 30. Kd2 {[%emt 0:00:08]} Rxf5 {[%emt 0:00:26] Weighted Error Value: White=0.65/Black=0.15 (very precise)} 0-1

[Event "FIDE WSCC 50 2022"]
[Site "Assisi"]
[Date "2022.11.22"]
[Round "7.11"]
[White "Prie, Eric"]
[Black "Kantorik, Marian"]
[Result "1/2-1/2"]
[ECO "A47"]
[WhiteElo "2356"]
[BlackElo "2171"]
[Annotator "TA"]
[PlyCount "115"]
[EventDate "2022.11.14"]
[EventType "swiss"]
[EventCountry "ITA"]
[SourceTitle "playchess.com"]
[Source "ChessBase"]
[SourceQuality "1"]
[TimeControl "40/5400+30:1800+30"]

{[%evp 9,115,0,15,17,14,13,14,3,13,15,16,18,22,19,53,42,72,77,100,102,105,100,103,98,114,95,94,97,97,70,74,82,75,68,76,33,32,34,36,39,30,29,28,30,32,32,30,27,29,33,20,16,14,15,17,13,19,12,11,8,8,0,0,0,0,0,0,0,0,0,0,0,0,0,0,0,0,0,0,0,0,0,8,8,8,8,8,8,8,8,8,8,8,0,8,0,0,0,8,0,0,0,0,0,8,8,8,-8]} 1. d4 {[%emt 0:00:04]} Nf6 {[%emt 0:00:56]} 2. Bf4 {[%emt 0:00:13]} e6 {[%emt 0:00:19]} 3. e3 {[%emt 0:00:10]} b6 {[%emt 0:00:42]} 4. Nf3 {[%emt 0:00:18]} Bb7 {[%emt 0:00:09]} 5. Bd3 {[%emt 0:00:08]} Nh5 {[%emt 0:00:14]} 6. Bg5 {[%emt 0:00:08] A47: 1 d4 Nf6 2 Nf3 b6: Torre, London and Colle Systems.} Be7 {[%emt 0:00:08]} 7. Bxe7 {[%emt 0:06:01]} Qxe7 {[%emt 0:00:10]} 8. O-O {[%emt 0:06:57]} O-O {[%emt 0:00:19]} 9. c4 {[%emt 0:00:20]} f5 {[%emt 0:00:13]} 10. Nc3 {[%emt 0:00:23]} Nf6 {[%emt 0:00:07]} 11. Rc1 {[%emt 0:03:36] [#]} a6 $146 {[%emt 0:11:51]} ({Predecessor:} 11... Ne4 12. Bxe4 fxe4 13. Nd2 d5 14. cxd5 exd5 15. Qb3 c6 16. Ndxe4 Ba6 17. Nxd5 cxd5 18. Qxd5+ Kh8 19. Qxa8 Bxf1 20. Kxf1 Qd7 21. Kg1 Qf5 22. Qb7 Nd7 23. Rc8 {1-0 (23) Fee,K (1854)-Wilshusen,H (1314) ICCF email 2020}) 12. a3 {[%emt 0:06:32]} d6 {[%emt 0:02:31]} 13. d5 {[%emt 0:06:07]} exd5 {[%emt 0:01:09]} 14. cxd5 {[%emt 0:00:28]} ({But not} 14. Bxf5 $6 dxc4 15. Ng5 Nbd7 $11) 14... g6 {[%emt 0:20:16]} 15. Re1 {[%emt 0:05:16]} Nbd7 {[%emt 0:08:37]} 16. e4 {[%emt 0:04:37]} fxe4 {[%emt 0:01:40]} 17. Nxe4 {[%emt 0:00:17]} Ne5 {[%emt 0:02:15]} 18. Nxe5 {[%emt 0:07:19]} dxe5 {[%emt 0:00:45]} 19. d6 {[%emt 0:12:59]} cxd6 {[%emt 0:01:21]} 20. Bc4+ {[%emt 0:02:03]} Kg7 {[%emt 0:06:55]} 21. Qxd6 {[%emt 0:01:22] White is more active.} Rae8 {[%emt 0:00:19]} 22. Qxe7+ {[%emt 0:08:26]} (22. Bxa6 $5 {[%cal Rc1c7]} Qxd6 23. Nxd6 Bxa6 24. Nxe8+ Rxe8 25. Rc6 $14) 22... Rxe7 {[%emt 0:00:10]} 23. Nd6 {[%emt 0:00:11]} b5 {[%emt 0:03:33]} 24. Nxb7 {[%emt 0:08:42]} Rxb7 {[%emt 0:00:28]} 25. Be6 {[%emt 0:00:14]} e4 {[%emt 0:06:00]} 26. Rc6 {[%emt 0:01:40]} a5 {[%emt 0:02:52]} 27. g4 {[%emt 0:02:00]} h6 {[%emt 0:03:42]} 28. Rd1 {[%emt 0:00:13]} Nh7 {[%emt 0:05:53]} 29. h4 {[%emt 0:01:27] Inhibits Ng5.} Rf4 {[%emt 0:03:36]} 30. Kg2 {[%emt 0:09:05] The position is equal.} Nf8 {[%emt 0:01:19]} 31. Bc8 {[%emt 0:00:11]} Rbf7 {[%emt 0:02:12]} 32. Rd2 {[%emt 0:01:05]} b4 {[%emt 0:01:59]} 33. a4 {[%emt 0:00:20]} h5 {[%emt 0:06:53]} 34. Rc5 {[%emt 0:00:49][%csl LRa5,LRh5]} hxg4 {[%emt 0:01:08]} 35. Rxa5 {[%emt 0:02:18]} Rc7 {[%emt 0:00:33] Against Rc5} 36. Ra8 {[%emt 0:01:16]} b3 {[%emt 0:02:49] Hoping for ...Rc2.} 37. Ba6 {[%emt 0:00:12]} e3 {[%emt 0:00:44]} 38. fxe3 {[%emt 0:00:58]} Rxa4 {[%emt 0:00:07]} 39. Rc8 {[%emt 0:00:59]} Rxc8 {[%emt 0:01:43]} ({Don't do} 39... Rc2 40. Rdxc2 bxc2 41. Bd3 $16) 40. Bxc8 $11 {[%emt 0:00:12][%mdl 4096] Endgame KRB-KRN} Rc4 {[%emt 0:00:04]} 41. Bb7 {[%emt 0:30:49]} Rc2 {[%emt 0:30:22]} 42. Rf2 {[%emt 0:00:05]} Nd7 {[%emt 0:00:00]} 43. Bd5 {[%emt 0:00:00]} Nc5 {[%emt 0:00:00] [#] ...Nd3 is the strong threat.} 44. Kg3 {[%emt 0:00:00]} Rxf2 {[%emt 0:00:00]} 45. Kxf2 {[%emt 0:00:00] KB-KN} Nd3+ {[%emt 0:00:00]} 46. Kg3 {[%emt 0:00:00]} Nxb2 {[%emt 0:00:00]} 47. Bxb3 {[%emt 0:00:00]} Nd3 {[%emt 0:00:00]} 48. Kxg4 {[%emt 0:00:00]} Kf6 {[%emt 0:00:00]} 49. Ba2 {[%emt 0:00:00]} Ne5+ {[%emt 0:00:00]} 50. Kf4 {[%emt 0:00:00]} Nd3+ {[%emt 0:00:00]} 51. Ke4 {[%emt 0:00:00]} Ne5 {[%emt 0:00:00]} 52. Kd5 {[%emt 0:00:00]} Nf3 {[%emt 0:00:00]} 53. e4 {[%emt 0:00:00][%cal Be3e4,Be4e5][%mdl 32]} Ke7 {[%emt 0:00:00]} 54. e5 {[%emt 0:01:36]} Nxh4 {[%emt 0:00:00]} 55. Ke4 {[%emt 0:00:19]} g5 {[%emt 0:00:00]} 56. Bd5 {[%emt 0:00:37]} Ng6 {[%emt 0:00:00]} 57. Kf5 {[%emt 0:00:20][%csl LRg5,LRg6]} Nxe5 {[%emt 0:00:00]} 58. Ke4 {[%emt 0:10:08] Weighted Error Value: White=0.04 (flawless) /Black=0.04 (flawless)} 1/2-1/2

[Event "FIDE WSCC 50 2022"]
[Site "Assisi"]
[Date "2022.11.22"]
[Round "7.12"]
[White "Cummings, David H."]
[Black "Meessen, Rudolf"]
[Result "1/2-1/2"]
[ECO "A42"]
[WhiteElo "2318"]
[BlackElo "2158"]
[Annotator "TA"]
[PlyCount "37"]
[EventDate "2022.11.14"]
[EventType "swiss"]
[EventCountry "ITA"]
[SourceTitle "playchess.com"]
[Source "ChessBase"]
[SourceQuality "1"]
[TimeControl "40/5400+30:1800+30"]

{[%evp 10,37,44,38,49,41,43,6,47,39,49,57,54,39,37,-67,-67,-58,85,99,90,47,36,35,33,36,42,43,48,0]} 1. c4 {[%emt 0:00:11]} g6 {[%emt 0:00:24]} 2. e4 {[%emt 0:00:19]} Bg7 {[%emt 0:00:16]} 3. d4 {[%emt 0:00:17]} d6 {[%emt 0:00:15]} 4. Nc3 {[%emt 0:00:21]} e5 {[%emt 0:00:28]} 5. d5 {[%emt 0:00:51]} a5 {[%emt 0:01:05]} 6. Bd3 {[%emt 0:01:30]} Na6 {[%emt 0:00:05] A42: Modern Defence: Averbakh Variation.} 7. a3 {[%emt 0:00:54]} Bd7 {[%emt 0:00:42] [#]} 8. h3 $146 {[%emt 0:03:29]} ({Predecessor:} 8. Bc2 Ne7 9. Nf3 O-O 10. O-O f5 11. Rb1 f4 12. b4 Kh8 13. Na4 axb4 14. axb4 {½-½ (60) Matei,C (2356)-Szymanski,R (2377) ICCF email 2019}) 8... Nc5 {[%emt 0:28:52] The position is equal.} 9. Bc2 {[%emt 0:00:28]} f5 {[%emt 0:02:25]} 10. exf5 {[%emt 0:16:39]} gxf5 {[%emt 0:00:13]} 11. Qh5+ {[%emt 0:00:43]} Kf8 {[%emt 0:00:44]} 12. Bxf5 {[%emt 0:21:02]} ({White should try} 12. Be3 $14) 12... Nf6 $15 {[%emt 0:00:24][%cal Bg8f6,Bf6d5,Bd5c3][%mdl 32]} 13. Qg5 {[%emt 0:01:24] [#] aiming for Bc2.} Nb3 {[%emt 0:07:06]} (13... Nxd5 $1 $15 {keeps the upper hand.} 14. Bxd7 (14. Nxd5 Qxg5 15. Bxg5 Bxf5 $17) 14... Qxg5 15. Bxg5 Nxc3 16. bxc3 Nxd7) 14. Rb1 $16 {[%emt 0:06:54]} Nxc1 {[%emt 0:15:40]} 15. Rxc1 {[%emt 0:13:42] Strongly threatening Bxd7.} Nxd5 $1 {[%emt 0:02:30] White is slightly better.} 16. Qxd8+ {[%emt 0:03:20]} Rxd8 {[%emt 0:00:05]} 17. Bxd7 {[%emt 0:01:11]} Nxc3 {[%emt 0:01:35]} 18. Bf5 {[%emt 0:01:50]} Na4 {[%emt 0:00:05]} 19. b3 {[%emt 0:04:02] Weighted Error Value: White=0.17 (very precise) /Black=0.24 (precise)} (19. Ne2 $14 {was preferrable.}) 1/2-1/2

[Event "FIDE WSCC 50 2022"]
[Site "Assisi"]
[Date "2022.11.22"]
[Round "7.13"]
[White "Rewitz, Poul"]
[Black "Rocha, Sergio"]
[Result "1-0"]
[ECO "A37"]
[WhiteElo "2172"]
[BlackElo "2316"]
[Annotator "TA"]
[PlyCount "91"]
[EventDate "2022.11.14"]
[EventType "swiss"]
[EventCountry "ITA"]
[SourceTitle "playchess.com"]
[Source "ChessBase"]
[SourceQuality "1"]
[TimeControl "40/5400+30:1800+30"]

{[%evp 12,91,34,0,0,-7,0,-1,8,9,30,0,33,26,25,-8,37,13,0,0,0,0,0,0,62,60,78,92,154,145,144,84,125,115,127,117,124,94,135,141,191,188,177,129,142,139,181,177,231,223,239,202,282,273,283,262,291,285,295,292,293,287,293,293,292,292,285,266,570,440,502,495,787,812,786,672,1064,1055,1988,1881,5679,5527]} 1. g3 {[%emt 0:01:58]} c5 {[%emt 0:00:18]} 2. Bg2 {[%emt 0:00:48]} Nc6 {[%emt 0:00:08]} 3. d3 {[%emt 0:01:14]} e5 {[%emt 0:02:28]} 4. c4 {[%emt 0:01:44]} g6 {[%emt 0:00:21]} 5. Nc3 {[%emt 0:02:41]} Bg7 {[%emt 0:02:14]} 6. Nf3 {[%emt 0:01:20]} Nge7 {[%emt 0:00:21]} 7. Nd2 {[%emt 0:00:52]} d6 {[%emt 0:01:33] A37: Symmetrical English vs ...g6: 4 Bg2 Bg7 5 Nf3.} 8. Nf1 {[%emt 0:01:13]} O-O {[%emt 0:05:27]} 9. Ne3 {[%emt 0:00:43]} Be6 {[%emt 0:00:18] The position is equal.} 10. Ned5 {[%emt 0:05:15]} Qd7 {[%emt 0:01:19]} 11. Rb1 {[%emt 0:03:57]} f5 {[%emt 0:09:42] [#]} (11... Bh3 $5 {[%cal Rh3g2]} 12. Nxe7+ Nxe7 $11) 12. Bg5 $146 {[%emt 0:06:44]} ({Predecessor:} 12. Bd2 Bxd5 13. Nxd5 Nxd5 14. Bxd5+ Kh8 15. b4 Rab8 16. bxc5 dxc5 17. O-O f4 18. Bc3 {1-0 (68) Shishkov,M (2268)-Kuhn,C (2150) Chess.com INT 2020}) 12... Rae8 {[%emt 0:11:00][%cal Of5f4]} 13. O-O {[%emt 0:02:21]} Nc8 {[%emt 0:02:49]} 14. Qd2 {[%emt 0:01:34]} f4 {[%emt 0:06:04]} 15. gxf4 {[%emt 0:04:30]} Bh3 $1 {[%emt 0:01:13]} 16. Bxh3 {[%emt 0:07:59]} Qxh3 {[%emt 0:00:11]} 17. Ne4 $36 {[%emt 0:01:15][%mdl 2048] White fights for an advantage.} exf4 {[%emt 0:08:41]} (17... Nb6 $1 $11) 18. f3 $14 {[%emt 0:03:38][%cal Bf2f3,Bf3f4][%mdl 32]} Nd4 {[%emt 0:07:53]} (18... Bd4+ 19. Kh1 $16) 19. Rbe1 {[%emt 0:14:08]} Re5 {[%emt 0:06:33]} (19... Rxe4 $142 20. dxe4 Ne6) 20. Bxf4 $16 {[%emt 0:06:17]} Rh5 {[%emt 0:05:15]} 21. Bg3 {[%emt 0:08:31]} ({Wrong is} 21. Nxd6 $2 Bh6 22. e3 Bxf4 23. Nxf4 Rxf4 24. exf4 (24. exd4 $2 Rg5+ 25. Kh1 Nxd6 $19) 24... Nxd6 $19) ({White should try} 21. Rf2 $1) 21... Bh6 {[%emt 0:07:07] [#]} 22. f4 $1 {[%emt 0:01:25] aiming for Ndf6+. The board is on fire.} Bg7 {[%emt 0:00:29] Against Ndf6+} 23. e3 {[%emt 0:03:16]} Nc6 {[%emt 0:00:47]} 24. a3 {[%emt 0:02:27]} Qe6 {[%emt 0:01:01]} 25. b4 {[%emt 0:00:50][%cal Bb2b4,Bb4b5][%mdl 32]} b6 {[%emt 0:00:38]} (25... cxb4 $16 26. axb4 N6e7) 26. b5 $18 {[%emt 0:02:30]} N6e7 {[%emt 0:01:06]} 27. Nxe7+ {[%emt 0:00:33]} (27. Ng5 $18 Qd7 28. e4 (28. Qg2 h6 $16)) 27... Nxe7 $16 {[%emt 0:00:17] [#]} 28. Ng5 $1 {[%emt 0:01:45]} Qf6 {[%emt 0:04:49]} 29. e4 {[%emt 0:00:37]} h6 {[%emt 0:01:12]} (29... Kh8 {was necessary.} 30. h4 h6) 30. Nf3 $18 {[%emt 0:01:09]} Rd8 {[%emt 0:00:23]} 31. a4 {[%emt 0:00:34][%cal Ba3a4,Ba4a5][%mdl 32]} Nc8 {[%emt 0:01:26]} 32. a5 {[%emt 0:00:57]} Qe6 {[%emt 0:01:16]} 33. Re2 {[%emt 0:01:21][%cal Be1e2,Be2g2,Bg2a2,Ba2a8][%mdl 32]} Rf8 {[%emt 0:01:01]} 34. Rg2 {[%emt 0:03:35]} Kh7 {[%emt 0:00:06]} 35. axb6 {[%emt 0:01:02]} axb6 {[%emt 0:00:05]} 36. Qc1 {[%emt 0:00:31]} Rf7 {[%emt 0:00:47]} 37. Ra2 {[%emt 0:00:16]} Qg4 {[%emt 0:00:44]} 38. Ra8 {[%emt 0:01:44]} Rh3 {[%emt 0:02:13][%cal Og7e5]} 39. Kg2 {[%emt 0:00:47] Threatens to win with Qd1.} Bf6 $2 {[%emt 0:00:10]} (39... Rh5 {is tougher.} 40. h4 Rf8) 40. f5 {[%emt 0:02:22] White is clearly winning.} Ne7 {[%emt 0:06:04]} 41. Qf4 {[%emt 0:12:02]} Qh5 {[%emt 0:00:51]} (41... gxf5 $142 42. Qxg4 fxg4) 42. fxg6+ {[%emt 0:03:27]} Nxg6 {[%emt 0:00:31]} 43. Qf5 {[%emt 0:01:58]} Rg7 {[%emt 0:00:10]} 44. Qxf6 {[%emt 0:03:15]} Rxh2+ {[%emt 0:05:00]} 45. Nxh2 {[%emt 0:01:46]} Nh4+ {[%emt 0:00:04]} 46. Kh1 {[%emt 0:01:01] Weighted Error Value: White=0.20 (precise) /Black=0.40} 1-0

[Event "FIDE WSCC 50 2022"]
[Site "Assisi"]
[Date "2022.11.22"]
[Round "7.14"]
[White "Tereladze, Sopio"]
[Black "Berend, Fred"]
[Result "1-0"]
[ECO "D00"]
[WhiteElo "2154"]
[BlackElo "2294"]
[Annotator "TA"]
[PlyCount "68"]
[EventDate "2022.11.14"]
[EventType "swiss"]
[EventCountry "ITA"]
[SourceTitle "playchess.com"]
[Source "ChessBase"]
[SourceQuality "1"]
[TimeControl "40/5400+30:1800+30"]

{[%evp 9,68,26,18,31,32,18,13,20,27,18,23,21,10,10,83,77,73,11,8,10,13,13,421,0,0,0,252,202,785,604,816,829,814,821,802,779,1145,670,670,672,650,641,733,725,902,900,960,947,946,940,1631,1558,2285,2233,5795,5258,5662,5252,29982,29982,5247]} 1. d4 {[%emt 0:00:30]} Nf6 {[%emt 0:00:00]} 2. Bg5 {[%emt 0:00:00]} d5 {[%emt 0:00:00]} 3. Bxf6 {[%emt 0:00:34]} gxf6 {[%emt 0:00:04]} 4. c4 {[%emt 0:01:37]} c5 {[%emt 0:02:03]} 5. cxd5 {[%emt 0:07:45]} Qxd5 {[%emt 0:00:13]} 6. Nf3 {[%emt 0:07:35] D00: 1 d4 d5: Unusual lines.} cxd4 {[%emt 0:01:34]} 7. Nc3 {[%emt 0:00:20]} Qa5 {[%emt 0:03:07]} 8. Nxd4 {[%emt 0:01:15] The position is equal.} Bg7 {[%emt 0:03:23]} 9. e3 {[%emt 0:01:38]} O-O {[%emt 0:04:43]} 10. Bd3 {[%emt 0:01:26] [#]} f5 $146 {[%emt 0:00:57]} ({Predecessor:} 10... Rd8 11. O-O f5 12. Qh5 e6 13. Rad1 Qe5 14. Nf3 Qf6 15. e4 Nc6 16. Rfe1 Qg6 17. Qh4 Qg4 18. exf5 Qxh4 19. Nxh4 Bf6 20. g3 {½-½ (20) Wells,P (2481)-Sulskis,S (2578) Port Erin 2003}) 11. Qh5 {[%emt 0:03:28]} e6 {[%emt 0:00:53]} (11... Nc6 $11) 12. g4 {[%emt 0:02:02] White is more active.} Nc6 {[%emt 0:02:15]} 13. gxf5 {[%emt 0:07:28]} (13. O-O-O $16) 13... Nxd4 $11 {[%emt 0:01:00]} 14. exd4 {[%emt 0:04:01][%cal Ob2b4]} exf5 {[%emt 0:00:46]} 15. O-O-O {[%emt 0:01:01] [#] aiming for Rhg1.} Rd8 $2 {[%emt 0:10:45][%mdl 8192]} (15... Kh8 $11) 16. Rde1 $2 {[%emt 0:11:47]} (16. Bc4 Qb6 17. Rhg1 (17. Qxf7+ Kh8 $16) 17... Qf6 $18) ({Better is} 16. Rhg1 $18 {Threatening mate with Qg5.} Rd6 17. Bc4) 16... Be6 {[%emt 0:02:56]} 17. Rhg1 {[%emt 0:03:42] Intending Qg5 and mate.} Rac8 $2 {[%emt 0:04:01][%mdl 8192] Black is now going downhill.} (17... Rdc8 $1 $11 18. Rxg7+ (18. Bc2 Rxc3 19. bxc3 Qxc3 $11) 18... Kxg7 19. Qg5+ Kf8 20. Qh6+ Ke7) 18. Bc2 $40 {[%emt 0:18:10][%mdl 128] White threatens Qg5 and mate. White has strong attack. Chess con chili.} Rxc3 $2 {[%emt 0:38:44]} (18... Qb6) 19. bxc3 {[%emt 0:01:00] [#] Threatens to win with Re3.} ({Weaker is} 19. Rxg7+ Kxg7 20. Qg5+ (20. bxc3 Rc8 $11) 20... Kf8 21. bxc3 Rc8 22. Rxe6 (22. Qh6+ Ke7 $11) 22... fxe6 23. Qf6+ Ke8 24. Qxe6+ Kd8 $11) 19... Rc8 {[%emt 0:00:39]} 20. Qg5 {[%emt 0:04:28][%csl Gg1][%cal Rg5g7]} Qa3+ {[%emt 0:00:45]} 21. Kd1 {[%emt 0:00:10][%csl Gg1][%cal Rg5g7]} Qf8 {[%emt 0:00:05]} 22. Re3 {[%emt 0:00:59]} f6 {[%emt 0:07:41]} 23. Qxg7+ {[%emt 0:01:05]} Qxg7 {[%emt 0:00:05]} 24. Rxg7+ {[%emt 0:00:06]} Kxg7 {[%emt 0:00:09]} 25. Rxe6 {[%emt 0:00:01][%mdl 4096] Endgame KRB-KR} Kg6 {[%emt 0:01:26]} 26. Kd2 {[%emt 0:00:11]} Rc7 {[%emt 0:00:30]} 27. f4 {[%emt 0:00:32]} Rd7 {[%emt 0:00:05]} 28. Kd3 {[%emt 0:00:33]} Kf7 {[%emt 0:01:59]} 29. Bb3 {[%emt 0:00:18]} Kg6 {[%emt 0:00:09]} 30. d5 {[%emt 0:00:17][%cal Bd4d5,Bd5d6][%mdl 32]} b5 {[%emt 0:00:08]} 31. d6 {[%emt 0:00:20]} a5 {[%emt 0:00:06]} 32. Kd4 {[%emt 0:00:09]} Rd8 {[%emt 0:00:42]} 33. Bd5 {[%emt 0:00:28]} b4 {[%emt 0:00:12]} 34. cxb4 {[%emt 0:00:06]} axb4 {[%emt 0:15:25] Weighted Error Value: White=0.77/Black=0.68} 1-0